Cogmind - Beta 12 @@@ ROGUE MODE // 2023.09.27 @ 16:01:38 Player: Whitebacon Result: Destroyed by G-47 Trooper with Particle Gun Performance ------------- Evolutions (0) 0 Regions Visited (2) 400 Robots Destroyed (16) 80 Value Destroyed (428) 428 Prototype IDs (5) 100 Alien Tech Used (0) 0 Bonus (0) 0 TOTAL SCORE: 1008 Bonus ------- None Cogmind --------- Core Integrity 0/250 Matter 195/300 Energy 343/360 System Corruption 1% Temperature Warm (192) Movement Rolling (135) Ox3 Location -10/Mines Parts ------- > --- POWER (1) -------- Light Nuclear Core > --- PROPULSION (2) --- Wheel Compact Wheel > --- UTILITY (2) ------ Huge Storage Unit Large Battery > --- WEAPON (2) ------- Particle Gun Assault Rifle > --- INVENTORY (25) --- Improved Heat Sink Small Laser Rocket Launcher Mining Laser Peak State ------------ > --- POWER ------------ Light Nuclear Core > --- PROPULSION ------- Wheel Compact Wheel > --- UTILITY ---------- Huge Storage Unit Propulsion Shielding > --- WEAPON ----------- Particle Gun Assault Rifle > --- INVENTORY -------- Light Nuclear Core Wheel Improved Heat Sink Large Battery Small Laser Assault Rifle [Rating: 11] Favorites ----------- Power Light Nuclear Core Engine Light Ion Engine Power Core Light Nuclear Core Propulsion Wheel Leg Aluminum Leg Wheel Wheel Utility Propulsion Shielding Storage Huge Storage Unit Protection Propulsion Shielding Weapon Assault Rifle Energy Gun Particle Gun Ballistic Gun Assault Rifle Launcher Rocket Launcher Build | -11 -10 -10 ------- Run | Jun Mat Min Slots Evolved . | . . . Power . | . . . Propulsion . | . . . Utility . | . . . Weapon . | . . . Parts Attached 31 | 6 20 5 Power 4 | 1 3 . Engine 2 | 1 1 . Core 2 | . 2 . Reactor . | . . . Propulsion 11 | 2 8 1 Treads . | . . . Leg 2 | 2 . . Wheel 9 | . 8 1 Hover . | . . . Flight . | . . . Utility 6 | 1 4 1 Device . | . . . Storage 4 | 1 2 1 Processor . | . . . Hackware . | . . . Protection 2 | . 2 . Artifact . | . . . Weapon 10 | 2 5 3 Energy Gun 4 | 2 2 . Energy Cannon . | . . . Ballistic Gun 5 | . 3 2 Ballistic Cannon . | . . . Launcher 1 | . . 1 Special Weapon . | . . . Impact Weapon . | . . . Slashing Weapon . | . . . Piercing Weapon . | . . . Special Melee Weapon . | . . . Unidentified Prototypes . | . . . Parts Lost 5 | . 2 3 Power . | . . . Propulsion 1 | . . 1 Utility 1 | . . 1 Weapon 3 | . 2 1 Highest Loss Streak 3 | . 2 3 To Critical Strikes . | . . . Average Slot Usage (%) 99 | . 98 100 Engine 5 | . 8 . Core 8 | . 5 14 Wheel 27 | . 27 28 Storage 14 | . 14 14 Protection 13 | . 13 13 Energy Gun 13 | . 12 14 Ballistic Gun 12 | . 15 7 Launcher 2 | . . 7 Naked Turns . | . . . Heaviest Build 93 | 12 91 93 Greatest Support 26 | 20 26 26 Greatest Overweight (x) 4 | . 4 3 Average Overweight (x) 2 | . 1 3 Largest Inventory Capacity 25 | 8 25 25 Average Capacity 20 | 6 19 25 Most Carried 7 | 5 7 7 Average Carried 4 | 2 3 6 Final Capacity 25 | 8 25 25 Final Carried 6 | 3 6 4 Class Distribution -------------------- 100% | Mutant Dominant Class ---------------- Mutant | -10/Materials Mutant | -10/Mines Resources | -11 -10 -10 ----------- Run | Jun Mat Min Matter Collected 616 | 244 354 18 Remotely . | . . . Salvage Created 537 | . 519 18 Parts 37 | . 29 8 Haulers Intercepted 1 | . 1 . Recyclers Shooed 1 | . 1 . Parts Field Recycled . | . . . Retrieved Matter . | . . . Parts Self-Destructed . | . . . Prevented . | . . . Kills | -11 -10 -10 ------- Run | Jun Mat Min Combat Hostiles Destroyed 13 | . 10 3 Guns 11 | . 10 1 AOE 2 | . . 2 Classes Destroyed 5 | . 4 1 Worker 1 | . 1 . Hauler 1 | . 1 . Operator 1 | . 1 . Swarmer 3 | . . 3 Grunt 10 | . 10 . Best Kill Streak 3 | . 3 3 Combat Bots Only 3 | . 3 3 Max Kills in Single Turn 1 | . 1 1 Gunslinging . | . . . Exploded 1 | . . 1 Melee . | . . . Uniques/NPCs Destroyed . | . . . Combat | -11 -10 -10 -------- Run | Jun Mat Min Damage Taken 863 | . 546 317 Core 260 | . 128 132 Absorbed by Shields . | . . . Redirected to Shielding 51 | . 38 13 Core Remaining (%) 100 | 100 . . Volleys Fired 61 | . 50 11 Largest 2 | . 2 2 Hottest 100 | . 100 85 Shots Fired 108 | . 90 18 Gun 105 | . 90 15 Cannon . | . . . Launcher 3 | . . 3 Special . | . . . Kinetic 59 | . 52 7 Thermal 46 | . 38 8 Explosive 3 | . . 3 Electromagnetic . | . . . Robot Hit Streak 13 | . 13 2 Robot Miss Streak 10 | . 10 10 Penetration Max . | . . . Secondary Targets . | . . . Shots Hit Robots 55 | . 50 5 Core Hits 31 | 1 25 5 Critical Kills . | . . . Critical Parts Destroyed 1 | . 1 . Critical Strikes 5 | . 5 . Burn 4 | . 4 . Destroy 1 | . 1 . Melee Attacks . | . . . Impact . | . . . Slashing . | . . . Piercing . | . . . Sneak Attacks . | . . . Combat Hostiles . | . . . Follow-up Attacks . | . . . Damage Inflicted 906 | 2 679 225 Guns 755 | . 679 76 Cannons . | . . . Explosions 149 | . . 149 Melee . | . . . Ramming 2 | 2 . . Kinetic 363 | . 336 27 Thermal 392 | . 343 49 Explosive 149 | . . 149 Electromagnetic . | . . . Impact . | . . . Slashing . | . . . Piercing . | . . . Highest Corruption 1 | . 1 1 Average Corruption 1 | . 1 1 Corruption Purged . | . . . Corruption Blocked . | . . . Effects 7 | . 2 5 Matter Fused 3 | . . 3 Energy Discharges 2 | . 1 1 Parts Rejected 1 | . 1 . Data Loss (minor) 1 | . . 1 Overload Shots . | . . . Overflow Damage 37 | . . 37 Projectiles . | . . . Explosions 37 | . . 37 Melee . | . . . Knockbacks . | . . . Impact . | . . . Kinetic . | . . . Secondary . | . . . Self-Inflicted Damage 91 | . . 91 Shots 3 | . . 3 Rammed . | . . . Targets Rammed 1 | 1 . . Kicked 1 | 1 . . Crushed . | . . . Highest Temperature 359 | . 359 195 Average Temperature 88 | . 97 56 Received Heat Transfer 429 | . 303 126 Effects 1 | . 1 . Shutdowns 1 | . 1 . Siege Activations . | . . . Robots Corrupted . | . . . Combat Hostiles . | . . . Parts Fried . | . . . Impact Corruptions . | . . . Robots Melted . | . . . Combat Hostiles . | . . . Parts Melted 2 | . 2 . Heat Transferred 1345 | . 1234 111 Parts Sabotaged . | . . . Parts Stolen . | . . . Parts Stripped . | . . . Power Chain Reactions . | . . . Missiles Intercepted . | . . . Alert | -11 -10 -10 ------- Run | Jun Mat Min Peak Influence 212 | . 212 154 Initial 53 | . . 53 Average 74 | . 87 63 Maximum Alert Level 1 | . 1 . Low Security (%) 99 | 100 99 100 Level 1 . | . . . Level 2 . | . . . Level 3 . | . . . Level 4 . | . . . Level 5 . | . . . High Security . | . . . Max Security . | . . . Squads Dispatched 2 | . 2 . Investigation 1 | . 1 . Extermination . | . . . Reinforcement 1 | . 1 . Assault . | . . . Garrison . | . . . Intercept . | . . . Searches Triggered . | . . . Construction Impeded . | . . . Haulers Reinforced . | . . . Active Scanning Responses . | . . . Cargo Convoy Interrupts . | . . . Stealth | -11 -10 -10 --------- Run | Jun Mat Min Distress Signals 1 | . 1 . Communications Jammed . | . . . Distress Signals . | . . . Times Spotted 25 | . 20 5 Peak Tracking Total 4 | . 4 3 Tactical Retreats . | . . . Traps | -11 -10 -10 ------- Run | Jun Mat Min Traps Triggered . | . . . Indirectly . | . . . Trap Hack Attempts . | . . . Triggered . | . . . Disarmed 1 | . 1 . Reprogrammed . | . . . Reused . | . . . Traps Extracted . | . . . Installed . | . . . Triggered . | . . . Machines | -11 -10 -10 ---------- Run | Jun Mat Min Machines Disabled . | . . . Max in Single Turn . | . . . Machines Repaired . | . . . Machines Sabotaged . | . . . Overloaded Fab Kills . | . . . Hacking | -11 -10 -10 --------- Run | Jun Mat Min Machines Accessed 6 | . 6 . Terminals 6 | . 6 . Fabricators . | . . . Repair Stations . | . . . Recycling Units . | . . . Scanalyzers . | . . . Garrison Access . | . . . Total Hacks 26 | . 26 . Successful 12 | . 12 . Failed 14 | . 14 . Catastrophic 2 | . 2 . Database Lockouts . | . . . Manual 18 | . 18 . Terminals 26 | . 26 . Fabricators . | . . . Repair Stations . | . . . Recycling Units . | . . . Scanalyzers . | . . . Garrison Access . | . . . Terminal Hacks 7 | . 7 . Part Schematic 1 | . 1 . Prototype ID Bank 4 | . 4 . Locate Traps 1 | . 1 . Disarm Traps 1 | . 1 . Fabricator Hacks . | . . . Repair Station Hacks . | . . . Recycling Unit Hacks . | . . . Scanalyzer . | . . . Garrison Access Hacks . | . . . Unauthorized Hacks 5 | . 5 . Terminals 5 | . 5 . Botnet 5 | . 5 . Fabricators . | . . . Repair Stations . | . . . Recycling Units . | . . . Scanalyzers . | . . . Garrison Access . | . . . Data Cores Recovered . | . . . Used . | . . . Hacking Detections 6 | . 6 . Full Trace Events 3 | . 3 . Feedback Events 1 | . 1 . Corruption 1 | . 1 . Feedback Blocked . | . . . Robot Schematics Acquired . | . . . Robots Built . | . . . Authchips . | . . . Time . | . . . Total Robot Build Rating . | . . . Part Schematics Acquired 1 | . 1 . Parts Built . | . . . Authchips . | . . . Time . | . . . Total Part Build Rating . | . . . Parts Repaired . | . . . Time . | . . . Parts Recycled . | . . . Recycled Matter . | . . . Retrieved Matter . | . . . Retrieved Components . | . . . Parts Scanalyzed . | . . . Part Schematics Acquired . | . . . Parts Damaged . | . . . Bothacking | -11 -10 -10 ------------ Run | Jun Mat Min Used RIF Installer . | . . . Robots Hacked . | . . . Non-combat . | . . . Combat . | . . . Robot Hacks Applied . | . . . Relay Couplers Released . | . . . Fabnet Peak Effective % . | . . . Robots Rewired . | . . . Allies Hacked . | . . . Hacks Repelled . | . . . Allies | -11 -10 -10 -------- Run | Jun Mat Min Total Allies . | . . . Largest Group . | . . . Highest-Rated Group . | . . . Highest-Rated Ally . | . . . Total Orders . | . . . Ally Attacks . | . . . Total Damage . | . . . Kills . | . . . Allies Corrupted . | . . . Allies Melted . | . . . Intel | -11 -10 -10 ------- Run | Jun Mat Min Robot Analysis Total . | . . . Derelict Logs Recovered 2 | . . 2 Drone Launches . | . . . Drone Recoveries . | . . . Exploration | -11 -10 -10 ------------- Run | Jun Mat Min Turns Passed 1044 | 50 631 363 Spaces Moved 583 | 37 344 202 Core 15 | 15 . . Treads . | . . . Legs 33 | 22 11 . Wheels 535 | . 333 202 Hover . | . . . Flight . | . . . Fastest Speed 50 | 50 90 135 Average Speed 120 | 91 115 135 Slowest Speed 140 | 120 140 135 Overloaded Moves . | . . . Propulsion Burnouts . | . . . Robots Hopped . | . . . Cave-ins Triggered . | . . . Exploration Rate (%) 36 | 3 63 42 Regions Visited 2 Branch Regions 1 Pre-discovered Areas 1 | . . 1 Known Exits Taken . | . . . Unknown Exits Taken 2 | 1 1 . Scrap Searched . | . . . Spaces Dug . | . . . Terrain Destroyed 21 | . . 21 Melee . | . . . Projectile . | . . . AOE 21 | . . 21 Terrain Rammed . | . . . Walls Destroyed . | . . . Machines Disabled . | . . . Actions | -11 -10 -10 --------- Run | Jun Mat Min Total 814 | 53 485 276 Wait 97 | 1 39 57 Move 582 | 37 343 202 Hop . | . . . Pick Up 30 | 9 20 1 Fast Attach . | . . . Attach 13 | 6 4 3 Detach . | . . . Swap 18 | . 16 2 Drop 13 | . 13 . Fire 61 | . 50 11 Melee . | . . . Ram . | . . . Kick . | . . . Crush . | . . . Escape Stasis . | . . . Rewire . | . . . Trap . | . . . Miscellaneous . | . . . Route ------- -11/Junkyard -10/Materials (discovered 2 exits: [*Mat] / [*Min]) -10/Mines History --------- Turn | Location | Event 11 | -11/Junkyard | Discovered new exit (range 15) 51 | -11/Junkyard | Entered Materials 305 | -10/Materials | Build established: Mutant 359 | -10/Materials | Discovered new exit (range 11) 461 | -10/Materials | Core integrity fell below 50% 572 | -10/Materials | Discovered new exit (range 13) 682 | -10/Materials | Entered Mines 722 | -10/Mines | Met a Derelict bent on vengeance 777 | -10/Mines | Learned location of Zion (-7) 807 | -10/Mines | Received a Rocket Launcher from a helpful Derelict 986 | -10/Mines | Learned Materials interactive machine intel 1013 | -10/Mines | Core integrity fell below 20% 1045 | -10/Mines | Destroyed by G-47 Trooper with Particle Gun Last Messages --------------- 01021_ Acquired 8 matter. 01022_ Acquired 10 matter. 01022_ U-05 Engineer lays Concrete. 01023_ T-07 Excavator is excavating. 01023_ U-05 Engineer lays Concrete. 01028_ R-06 Scavenger collects Flight Unit. 01029_ The unstable cave ceiling collapses. 01031_ U-05 Engineer lays Concrete. 01031_ Propulsion Shielding destroyed. 01031_ Wheel destroyed. 01033_ U-05 Engineer lays Concrete. 01034_ R-06 Scavenger collects Lgt. Ion Engine. 01035_ U-05 Engineer lays Concrete. 01036_ R-06 Scavenger collects Lgt. Ion Engine. 01037_ Critical hit (Burn: +37). 01038_ U-05 Engineer lays Concrete. 01040_ R-06 Scavenger collects Lgt. Assault Rifle. 01041_ R-06 Scavenger collects Flight Unit. 01042_ U-05 Engineer lays Concrete. 01043_ Assault Rifle destroyed. Map ----- +----------------------------------------------------+ | ??????????????????????????????????????????? | | ??????????????????????????????????????????? | | ??????????????????????????????????????????? | | ??????????????????????????????????????????? | | ##????????????????????????????????????????? | | ##???????????????????????????????????????? | | ##??????????????????????????????????????? | | #??????????????????????????????????????? | | #??????????????????????????????????????? | | #??????????????????????????????????????? | | # ##??????????????????????????????????????? | | ## #???###?????????????????????????????????? | | ?# #?## ##????????????????????????????????? | | ?# ### ##???????????????????????????????? | | ?# ## ##????????###???????????????????? | | ?# ######???# ???????????????????? | | ## ??? ???????????????????? | | # ###???????# ???????????????????? | | ##?????????# ???????????????????? | | ##?????????# $##?????????????????? | | ## ##????????# ####??????????????? | | #### ##???????# ???????????????? | | #??## #??????## g ????????????????? | | #???# #??????# g#????????????????? | | ##??## #####??????# #????????????????? | | ###### ##?????###### @ #????????????????? | | ### #??????# ##??????##???????? | | ## ##?????# #### ###??? ##??????? | | # #?????# #??## ### #??????? | | # ## #?????# #???# #??????? | | ## ##### #?##### ##### u ##??????? | | ?##?#### #?# r r ##???????? | | ????# #?# ### ##### =## ##????????? | | ????# #?# #?# #???# ##?????????? | | ????# ####?# #?# #???# # #??????????? | | ???## #????# #?# ???# ## [ ##??????????? | | ???# ##???# #?###???# ### ##???????????? | | ??## ##?## #???????# ? #????????????? | | ?## ### #???????# ? ????????????? | | ?# #???????####?# $???????????? | | # """" ##????????????# ??????????? | | """" #?????????????## ??????????? | | """" ##???????????????# ##?????????? | | # #####?????????????????####??????????? | | #########???????????????????????????????????? | | ????????????????????????????????????????????? | | ????????????????????????????????????????????? | | ????????????????????????????????????????????? | | ????????????????????????????????????????????? | | | +----------------------------------------------------+ Best States ------------- Heat Dissipation 25 Energy Generation 14 Energy Capacity 360 Matter Stores 300 Matter Capacity 300 Sight Range 16 Terrain Scan Density 10 Propulsion Shielding 33 Evasion (%) 50 Item Schematics ----------------- Huge Storage Unit | -10/Materials | Hacked Robot Schematics ------------------ None Fabricated ------------ Nothing Alien Tech Used ----------------- None Achievements -------------- None Challenges ------------ None Game ------ Seed DrainedModifiedBlaster Manual? 0 Play Time 00:10:16 Cumulative 80.3 hours Start 2023.09.27 @ 15:52:17 End 2023.09.27 @ 16:01:38 Sessions 1 Manual Loads 0 Difficulty Rogue Special Mode None Game No. 152 Rogue 152 Adventurer 0 Explorer 0 Win Type - Total 0 Types 0/0/0/0/0/0/0/0/0 Lore% 39 Gallery% 51 Achievement% 38 Wizard Run 0 Options --------- ASCII 0 Keyboard 0 Movement Numpad Keybinds 0 Fullscreen 1 Font 12/Tallcaps Map View 83x54 Tactical HUD 1 Map Filters NONE Filters NONE Steam 1 RUN: 348be746-fabf-479b-b750-2652baa63f06